bitfinex/quotes_ETHUSD_20241108
["timestamp","ask_amount","ask_price","bid_price","bid_amount"]
[1731055805793,0.8189,2898.1,2897.4,4.54282702]
[1731055805794,0.8146,2898.7,2897.9,0.55]
[1731055805996,0.8146,2898.7,2898.1,0.55]
[1731055807365,0.8146,2898.7,2897.4,0.40272393]
[1731055807564,0.8146,2898.7,2897.2,1.35274932]
[1731055807955,0.7952,2898.6,2897.2,1.35274932]
[1731055808702,0.7952,2898.6,2897.3,0.55]
[1731055809494,0.8148,2898.5,2897.3,0.55]
[1731055810307,0.8148,2898.5,2897.2,0.82858936]
[1731055810465,1.00290416,2898.4,2897.2,0.82858936]
[1731055810800,1.00290416,2898.4,2897.3,0.0690169]
[1731055811008,0.8148,2898.4,2897.3,0.0690169]
[1731055811162,0.8148,2898.4,2897.2,0.46964186]
[1731055811361,0.8148,2898.4,2897.4,0.8182]
[1731055811786,0.8148,2898.4,2897.5,0.55]
[1731055813901,0.8148,2898.4,2897.3,0.55]
[1731055815706,0.8148,2898.4,2897.5,0.55]
[1731055815885,0.8148,2898.4,2897.7,0.55]
[1731055816086,0.8148,2898.4,2897.9,0.55]
[1731055817363,0.8148,2898.4,2898.0,0.06900423]
[1731055817575,0.8148,2898.4,2898.1,0.55]
[1731055817994,0.8148,2898.4,2897.9,0.55]
[1731055818160,0.8167,2899.1,2897.8,0.55]
[1731055818501,0.8167,2899.1,2898.1,0.7574]
[1731055818706,0.8167,2899.1,2898.3,0.55]
[1731055819023,0.8167,2899.1,2898.5,0.55]
[1731055819223,0.8167,2899.1,2898.7,0.55]
[1731055819583,1.80305784,2899.9,2898.9,0.55]
[1731055819584,0.7792,2899.8,2898.9,0.55]
[1731055819833,0.7792,2899.8,2899.1,0.55]
[1731055819983,0.7792,2899.8,2899.3,0.55]
[1731055823924,0.7792,2899.8,2898.7,0.27492822]
[1731055824144,0.8014,2899.7,2898.2,0.7647]
[1731055824425,0.8014,2899.4,2897.9,1.20273]
[1731055824586,0.8014,2899.4,2897.9,0.7647]
[1731055825842,0.8014,2899.4,2897.9,1.04939346]
[1731055826127,0.8235,2899.1,2897.6,0.8322]
[1731055826482,0.8235,2898.9,2897.6,0.8322]
[1731055826998,0.7548,2898.7,2897.4,0.35832889]
[1731055827185,3.33320309,2898.5,2897.0,7.41]
[1731055827527,0.8015,2898.3,2896.8,0.28416382]
[1731055827699,0.8015,2898.3,2896.7,3.33320309]
[1731055828025,0.8015,2898.3,2896.8,0.83096003]
[1731055828523,0.8015,2898.3,2896.8,3.83096003]
[1731055829485,0.8015,2898.3,2896.9,0.55]
[1731055830686,0.8015,2898.3,2896.8,3.83096003]
[1731055830891,0.8015,2898.3,2896.8,4.10475413]
[1731055831093,0.8178,2898.1,2896.9,0.74379572]
[1731055831987,0.8178,2898.1,2897.0,0.55]
[1731055832792,0.8178,2898.1,2897.0,0.61902411]
[1731055833124,0.8178,2898.1,2897.0,0.55]
[1731055833328,0.8178,2898.1,2897.2,0.55]
[1731055833830,0.8178,2898.1,2897.0,0.55]
[1731055834046,0.8178,2898.1,2897.1,0.06902411]
[1731055834195,0.8178,2898.1,2897.0,1.03485498]
[1731055834390,0.8178,2898.1,2897.0,5.15325807]
[1731055834731,0.8178,2898.1,2897.2,0.55]
[1731055834897,0.8178,2898.1,2897.1,3.06901555]
[1731055834898,0.8178,2898.1,2897.4,0.55]
[1731055844569,0.8178,2898.1,2897.5,0.06901659]
[1731055844721,0.8178,2898.1,2897.4,0.55]
[1731055844722,0.8178,2898.1,2897.6,0.55]
[1731055844926,0.8178,2898.1,2897.5,0.55]
[1731055845136,0.8178,2898.1,2897.7,3.55]
[1731055845359,0.8178,2898.1,2897.9,0.55]
[1731055848465,0.8302,2899.2,2898.1,0.55]
[1731055848764,0.8302,2899.2,2898.3,0.55]
[1731055848969,0.8302,2899.2,2898.5,0.55]
[1731055853085,0.8302,2899.2,2898.3,0.55]
[1731055855000,0.8218,2899.0,2897.9,0.55]
[1731055855291,3.33320309,2899.1,2897.3,0.7522]
[1731055855292,0.8218,2898.8,2897.3,0.7522]
[1731055855699,0.8218,2898.8,2897.3,1.03648566]
[1731055856270,0.8218,2898.8,2897.5,0.55]
[1731055856471,0.8218,2898.8,2897.7,0.55]
[1731055858721,0.8218,2898.8,2897.5,0.55]
[1731055859027,0.8218,2898.8,2897.7,0.55]
[1731055860521,0.8218,2898.8,2897.8,0.7849]
[1731055860809,0.8218,2898.8,2897.9,0.55]
[1731055861984,0.8218,2898.8,2897.8,0.55]
[1731055868019,0.8218,2898.8,2897.6,0.55]
[1731055868228,0.7705,2898.6,2897.4,0.55]
[1731055868393,0.7705,2898.6,2897.1,0.35973863]
[1731055868596,0.7705,2898.6,2897.1,0.27777314]
[1731055868781,0.8033,2898.4,2897.2,0.06902331]
[1731055869705,0.8033,2898.4,2897.2,0.55]
[1731055871493,0.8033,2898.4,2897.1,0.55]
[1731055871695,0.8033,2898.4,2897.0,0.76156845]
[1731055871896,0.7702,2898.3,2897.0,0.76156845]
[1731055872083,3.33320309,2898.4,2897.0,0.76156845]
[1731055872084,0.7702,2898.1,2897.0,0.76156845]
[1731055873028,0.7702,2898.1,2897.1,0.55]
[1731055875917,0.7702,2898.1,2897.1,0.61902573]
[1731055876231,0.7702,2898.1,2897.1,0.55]
[1731055876786,0.7702,2898.1,2896.7,0.55]
[1731055877009,0.7962,2897.9,2896.8,0.193029]
[1731055877213,0.7962,2897.9,2896.5,0.27791246]
[1731055877431,0.7962,2897.8,2896.4,2.19979]
[1731055878003,0.7962,2897.8,2896.5,0.06903904]
[1731055878593,0.7962,2897.8,2896.6,0.55]
[1731055880746,4.13940309,2897.8,2896.4,0.27436917]
[1731055880910,0.7749,2897.6,2896.5,0.55]
[1731055886532,0.7749,2897.6,2896.4,1.04012899]
[1731055886533,0.7749,2897.6,2896.7,0.55]
[1731055886939,0.7749,2897.6,2896.5,0.55]
[1731055889157,0.7749,2897.6,2896.7,0.55]
[1731055889454,0.7749,2897.6,2896.5,0.55]
[1731055889668,0.7749,2897.6,2896.9,0.55]
[1731055889965,0.8138,2898.6,2897.1,0.55]
[1731055890117,0.8138,2898.6,2897.3,0.55]
[1731055890321,0.8138,2898.6,2897.5,0.55]
[1731055890626,0.8138,2898.6,2897.7,0.55]
[1731055890852,0.8138,2898.6,2897.9,0.55]
[1731055891314,0.8002,2898.3,2897.1,0.55]
[1731055892019,3.33320309,2898.1,2897.1,0.55]
[1731055892214,0.8127,2898.0,2896.9,0.55]
[1731055893121,0.8119,2897.9,2896.9,0.55]
[1731055893353,0.8119,2897.7,2896.9,0.55]
[1731055893522,0.8119,2897.7,2896.4,0.27688991]
[1731055893716,0.8119,2897.7,2896.3,0.7636]
[1731055893922,0.8119,2897.7,2896.1,1.12348096]
[1731055894453,0.8119,2897.7,2896.2,0.06904285]
[1731055894667,0.8279,2897.5,2896.2,0.06904285]
[1731055895124,0.8279,2897.5,2896.3,0.55]
[1731055895332,0.8279,2897.5,2896.5,0.55]
[1731055895715,0.7828,2897.4,2896.1,0.64003294]
[1731055895917,0.7828,2897.4,2896.1,0.28015335]
[1731055896162,0.7828,2897.4,2895.7,0.7633]
[1731055896533,0.7828,2897.4,2895.9,1.380565]
[1731055896736,0.7828,2897.4,2895.8,0.4175276]
[1731055896919,0.7828,2897.4,2895.8,0.1361101]
[1731055897121,0.8236,2897.2,2895.8,1.5166751]
[1731055897358,0.8236,2897.2,2895.9,0.55]
[1731055897907,0.8193,2896.8,2895.8,0.1361101]
[1731055898156,0.8193,2896.6,2895.8,0.1361101]
[1731055899771,0.8193,2896.6,2895.9,0.55]
[1731055901373,0.8193,2896.6,2895.9,1.3067]
[1731055901533,0.8193,2896.6,2896.1,0.55]
[1731055901941,0.8193,2896.6,2896.0,0.55]
[1731055902532,0.8193,2896.6,2896.2,0.55]
[1731055902732,0.8193,2896.6,2896.3,0.06904612]
[1731055902945,0.8212,2896.9,2896.2,0.55]
[1731055903472,0.8212,2896.9,2896.4,1.3709]
[1731055903667,0.8212,2896.9,2896.6,0.55]
[1731055904056,0.7955,2897.6,2896.7,0.06903932]
[1731055904235,0.7955,2897.6,2896.5,0.55]
[1731055905673,0.7955,2897.6,2896.5,0.61904045]
[1731055905674,0.98278068,2897.6,2896.5,0.61904045]
[1731055906567,0.7955,2897.6,2896.5,0.61904045]
[1731055907649,0.7955,2897.6,2896.5,0.55]
[1731055907850,0.7955,2897.6,2896.7,0.55]
[1731055908774,0.7955,2897.6,2896.4,0.8209]
[1731055908775,0.7955,2897.6,2896.5,0.55]
[1731055912459,0.7955,2897.6,2896.7,0.55]
[1731055913059,0.7955,2897.6,2896.8,0.06903511]
[1731055913266,0.7955,2897.6,2896.9,0.55]
[1731055913574,0.7955,2897.6,2896.9,1.3009]
[1731055919126,0.811,2898.1,2897.3,0.55]
[1731055921013,0.811,2898.1,2897.3,0.61902637]
[1731055921576,0.811,2898.1,2897.3,0.55]
[1731055921772,0.811,2898.1,2897.5,0.55]
[1731055922508,0.811,2898.1,2897.3,0.55]
[1731055922928,0.811,2898.1,2897.1,0.55]
[1731055925126,0.7873,2898.4,2897.4,0.55]
[1731055925327,0.7873,2898.4,2897.7,0.55]
[1731055925617,0.33332031,2898.9,2897.2,3.0]
[1731055925618,0.7873,2898.7,2898.0,0.7511]
[1731055925837,0.7873,2898.7,2898.1,0.55]
[1731055926538,0.7873,2898.7,2897.9,0.55]
[1731055926681,0.41205031,2898.6,2897.9,0.55]
[1731055930546,0.7873,2898.7,2897.9,0.55]
[1731055930846,0.8055,2899.1,2898.0,0.7777]
[1731055931054,0.8055,2899.1,2898.1,0.61900396]
[1731055931257,0.8055,2899.1,2898.3,0.55]
[1731055932138,0.7764,2899.8,2898.7,0.55]
[1731055932457,0.8007,2900.2,2899.1,0.55]
[1731055932666,0.98850068,2900.2,2899.3,0.55]
[1731055932975,0.8007,2900.2,2899.4,0.7867]
[1731055933109,0.8007,2900.2,2899.5,0.55]
[1731055933467,8.77640901,2901.0,2899.7,0.55]
[1731055933468,0.8002,2900.7,2899.7,0.55]
[1731055933614,0.8002,2901.3,2900.0,0.55]
[1731055933961,0.8002,2901.9,2900.3,0.55]
[1731055934113,3.33320309,2901.7,2900.3,0.55]
[1731055934314,3.33320309,2901.4,2900.3,0.55]
[1731055934513,0.7582,2901.3,2900.3,0.55]
[1731055934762,0.40914031,2901.2,2900.3,0.55]
[1731055935256,0.40914031,2901.2,2900.2,0.7896]
[1731055935417,4.51390831,2901.2,2900.0,0.55]
[1731055936286,0.40914031,2901.2,2900.0,0.55]
[1731055936487,0.7582,2901.3,2900.0,0.55]
[1731055936850,0.7746,2901.6,2900.3,0.788]
[1731055937202,0.7746,2901.6,2900.4,0.61894637]
[1731055937356,0.7746,2901.6,2900.4,0.55]
[1731055938898,0.7746,2901.6,2900.6,0.55]
[1731055939453,0.7746,2901.6,2900.4,0.61894352]
[1731055939687,0.7746,2901.6,2900.4,0.55]
[1731055940696,4.909868,2902.0,2900.5,0.825]
[1731055940999,0.4909868,2901.9,2900.6,0.55]
[1731055941365,0.4909868,2901.9,2900.8,0.55]
[1731055941603,0.8051,2902.0,2900.8,0.55]
[1731055943196,4.865768,2902.4,2901.2,0.55]
[1731055943405,4.104768,2902.8,2901.4,0.55]
[1731055943561,4.104768,2902.8,2901.6,0.55]
[1731055947084,13.011,2903.1,2901.5,0.7714]
[1731055947085,4.104768,2902.4,2901.5,0.7714]
[1731055947192,4.104768,2902.4,2900.2,4.104768]
[1731055947546,4.104768,2902.4,2900.8,0.7583]
[1731055948194,0.7966,2902.3,2900.8,0.7583]
[1731055949396,0.7966,2902.3,2900.9,0.55]
[1731055949740,0.4901368,2902.2,2901.1,0.55]
[1731055953932,4.104768,2902.0,2901.1,0.55]
[1731055956637,0.4901368,2902.2,2901.1,0.55]
[1731055956838,0.4901368,2902.2,2901.2,0.8327]
[1731055957141,0.4901368,2902.2,2901.3,0.55]
[1731055958145,3.33230697,2902.1,2901.3,0.55]
[1731055958331,0.38224438,2902.0,2901.2,0.8327]
[1731055961140,3.33230697,2901.8,2901.2,0.8327]
[1731055961365,0.38224438,2902.0,2900.9,0.782]
[1731055961366,3.33230697,2901.5,2900.9,0.782]
[1731055961639,3.33230697,2901.5,2900.6,0.782]
[1731055964444,3.33230697,2900.7,2899.2,0.782]
[1731055964597,3.33230697,2900.7,2899.4,0.782]
[1731055965107,3.33230697,2901.0,2899.5,0.88816983]
[1731055966040,3.33230697,2901.0,2899.9,0.8192]
[1731055966357,3.33230697,2901.0,2900.0,0.55]
[1731055966509,0.7784,2901.1,2899.9,0.8192]
[1731055966510,3.33230697,2900.7,2899.9,0.8192]
[1731055967021,3.33230697,2900.7,2898.6,7.41]
[1731055967022,3.33230697,2900.1,2898.9,0.7922]
[1731055967343,0.77,2900.0,2898.9,0.7922]
[1731055967529,3.33230697,2899.8,2898.9,0.7922]
[1731055969315,3.83510977,2899.8,2898.9,0.7922]
[1731055969519,0.38351098,2899.7,2898.9,0.7922]
[1731055970066,0.38351098,2899.7,2898.0,0.7531]
[1731055970232,3.83510977,2899.4,2898.0,0.7531]
[1731055971124,3.0,2899.3,2898.0,0.7531]
[1731055972330,3.0,2899.3,2898.1,0.55]
[1731055972530,0.68351098,2899.2,2898.1,0.55]
[1731055972847,0.7673,2899.1,2898.1,0.55]
[1731055973191,3.0,2898.9,2898.0,0.7531]
[1731055976446,3.0,2898.9,2896.9,3.34604192]
[1731055976447,3.0,2899.3,2898.1,0.55]
[1731055976646,1.226,2899.3,2898.2,0.8245]
[1731055977883,4.59470977,2899.4,2898.2,0.8245]
[1731055978589,3.83510977,2899.4,2898.2,0.7617]
[1731055979091,3.83510977,2899.4,2898.4,0.7617]
[1731055979495,3.0,2899.3,2898.4,0.7617]
[1731055981105,0.8125,2899.2,2898.4,0.7617]
[1731055981271,0.38125,2899.1,2898.4,0.7617]
[1731055984377,15.24,2899.3,2898.4,0.7617]
[1731055988176,0.7619,2899.2,2898.4,0.7617]
[1731055990094,3.0,2899.5,2898.4,0.7617]
[1731055993936,4.10735866,2899.3,2898.4,0.7617]
[1731055994092,3.0,2899.2,2898.4,0.7617]
[1731055994295,0.71073587,2899.1,2898.4,0.7617]
[1731056001729,3.0,2899.4,2898.4,0.7617]
[1731056004701,3.0,2899.4,2898.6,0.7723]
[1731056004956,0.38351098,2899.7,2898.8,0.7739]
[1731056005242,7.34,2900.1,2899.0,0.7739]
[1731056005443,0.734,2900.0,2899.0,0.7739]
[1731056006327,3.33945866,2899.9,2899.0,0.7739]
[1731056007405,3.33945866,2899.9,2899.1,0.55]
[1731056007640,3.0,2900.0,2899.2,0.8197]
[1731056008161,7.34,2900.1,2899.2,0.8197]
[1731056009409,9.93194587,2900.1,2899.2,0.8197]
[1731056009612,7.34,2900.1,2899.2,0.8197]
[1731056009846,3.33945866,2900.2,2899.4,0.765]
[1731056010807,3.33945866,2900.5,2899.4,0.765]
[1731056011044,3.0,2900.4,2899.4,0.765]
[1731056011345,3.33945866,2900.5,2899.6,0.7548]
[1731056011845,3.33945866,2900.5,2899.7,0.55]
[1731056012052,3.33945866,2900.5,2899.8,0.8076]
[1731056012544,3.0,2900.4,2899.8,0.8076]
[1731056017839,3.0,2900.7,2899.8,0.8076]
[1731056018948,15.57945866,2901.2,2900.2,0.7902]
[1731056019169,1.55794587,2901.1,2900.2,0.7902]
[1731056019444,1.85020219,2901.5,2899.1,3.62221415]
[1731056019445,4.12645866,2901.5,2900.4,0.7902]
[1731056019660,3.33945866,2901.5,2900.5,0.55]
[1731056019874,3.33945866,2901.8,2900.6,0.7902]
[1731056020182,3.33945866,2901.5,2900.6,0.7902]
[1731056020380,0.33394587,2901.4,2900.6,0.7902]
[1731056023147,3.0,2901.1,2900.6,0.7902]
[1731056027788,3.33945866,2900.9,2899.6,0.55]
[1731056028097,3.33945866,2900.9,2899.8,0.755]
[1731056028398,3.33945866,2900.9,2899.9,0.55]
[1731056028699,3.33945866,2900.9,2899.5,0.55]
[1731056028867,3.33945866,2900.9,2899.7,0.55]
[1731056029203,3.33945866,2900.5,2899.8,0.7769]
[1731056029369,3.33945866,2900.8,2899.8,0.7769]
[1731056029569,0.63394587,2900.9,2899.8,0.7769]
[1731056030311,0.63394587,2900.9,2899.9,0.55]
[1731056030467,6.33945866,2901.4,2900.0,0.7655]
[1731056030798,6.33945866,2901.4,2900.0,0.8245]
[1731056030967,6.33945866,2901.4,2900.2,0.8245]
[1731056031957,6.33945866,2901.4,2900.4,0.7618]
[1731056036979,3.0,2901.6,2900.4,0.7618]
[1731056037168,3.33945866,2901.4,2900.4,0.7618]
[1731056037482,3.0,2901.3,2900.4,0.7618]
[1731056040386,3.71213587,2901.6,2900.4,0.7618]
[1731056040700,3.0,2901.6,2900.4,0.7618]
[1731056043099,3.0,2901.8,2900.5,0.61895262]
[1731056043404,3.0,2901.8,2900.8,0.8252]
[1731056043604,4.16975866,2902.0,2901.0,0.7782]
[1731056043605,3.33945866,2902.0,2901.0,0.7782]
[1731056043790,3.33945866,2902.0,2900.9,0.55]
[1731056043791,1.29426369,2902.0,2901.2,0.7782]
[1731056043997,3.33945866,2902.3,2901.2,0.7782]
[1731056045997,3.0,2902.2,2901.2,0.7782]
[1731056047707,3.0,2902.2,2900.6,0.27926626]
[1731056047708,3.0,2902.2,2901.4,0.7757]
[1731056050339,3.33945866,2902.6,2901.4,0.7757]
[1731056050524,4.89283917,2902.6,2901.5,0.55]
[1731056050864,3.33945866,2902.6,2901.6,0.7543]
[1731056051373,1.06320219,2903.0,2901.8,0.7543]
[1731056051534,12.24,2903.2,2902.1,0.55]
[1731056051739,12.24,2903.2,2902.3,0.55]
[1731056052052,12.24,2903.2,2902.4,0.785]
[1731056052392,3.33945866,2903.4,2902.4,0.785]
[1731056052733,3.33394587,2903.3,2902.4,0.785]
[1731056054576,3.33945866,2903.1,2902.4,0.785]
[1731056055573,3.33945866,2902.8,2902.4,0.785]
[1731056057381,3.0,2902.7,2901.3,0.55]
[1731056057538,0.63394587,2902.6,2901.4,0.8177]
[1731056057859,0.63394587,2902.6,2901.6,0.8177]
[1731056064845,3.33945866,2902.5,2901.6,0.8177]
[1731056065041,3.0,2902.4,2901.6,0.8177]
[1731056068793,3.33945866,2902.5,2901.6,0.8177]
[1731056068794,6.33945866,2902.5,2901.6,0.8177]
[1731056069089,0.39734045,2902.4,2901.6,0.8177]
[1731056070902,3.39734045,2902.4,2901.6,0.8177]
[1731056074664,4.4732599,2902.4,2901.6,0.8177]
[1731056074899,3.39734045,2902.4,2901.6,0.8177]
[1731056075098,0.78127186,2902.3,2901.6,0.8177]
[1731056076571,1.85719131,2902.3,2901.6,0.8177]
[1731056077808,3.33945866,2901.9,2900.2,0.7517]
[1731056077965,3.0,2901.8,2901.3,0.7517]
[1731056078166,4.40986532,2901.8,2901.3,0.7517]
[1731056080206,0.772,2901.7,2900.0,0.8067]
[1731056080499,6.33945866,2901.6,2900.0,0.8067]
[1731056080701,1.93514587,2901.5,2900.2,0.7757]
[1731056080879,3.0,2901.2,2900.2,0.7757]
[1731056081408,1.07591945,2901.1,2900.2,0.7757]
[1731056081908,4.07591945,2901.2,2900.2,0.7757]
[1731056082111,0.88499374,2901.1,2900.2,0.7757]
[1731056083268,3.0,2901.2,2900.2,0.7757]
[1731056084781,4.07591945,2901.3,2900.2,0.7757]
[1731056085884,7.41537811,2901.3,2900.2,0.7757]
[1731056086389,6.33945866,2901.3,2900.2,0.7757]
[1731056086709,7.41537811,2901.3,2900.2,0.7757]
[1731056086917,5.04531781,2901.2,2900.2,0.7757]
[1731056087913,3.0,2901.2,2900.2,0.7757]
[1731056088721,3.33945866,2901.3,2900.2,0.7757]
[1731056088722,3.0,2901.3,2900.2,0.7757]
[1731056089221,6.33945866,2901.3,2900.2,0.7757]
[1731056091274,3.0,2901.3,2900.2,0.7757]
[1731056092305,7.86345866,2901.3,2900.2,0.7757]
[1731056093223,3.33945866,2901.0,2900.2,0.7757]
[1731056093778,20.10345866,2901.3,2900.2,0.7757]
[1731056096494,0.7545,2901.2,2900.2,0.7757]
[1731056096719,20.10345866,2901.3,2900.2,0.7757]
[1731056096929,2.11793781,2901.2,2900.2,0.7757]
[1731056100384,3.0,2901.1,2900.2,0.7757]
[1731056100585,3.33945866,2901.0,2900.2,0.7757]
[1731056100899,3.0,2900.9,2900.2,0.7757]
[1731056102785,3.0,2900.6,2900.2,0.7757]
[1731056103014,0.63394587,2900.5,2900.2,0.7757]
[1731056113529,0.63394587,2900.5,2898.4,7.42]
[1731056113530,3.0,2900.3,2900.0,0.7535]
[1731056113840,3.0,2900.3,2899.1,0.7535]
[1731056114420,4.15525866,2900.4,2899.1,0.7535]
[1731056114421,3.0,2900.0,2899.1,0.7535]
[1731056114626,0.63394587,2899.9,2899.1,0.7535]
[1731056115364,3.0,2900.0,2899.1,0.7535]
[1731056121271,12.24,2900.4,2899.3,0.7726]
[1731056121564,1.53982821,2900.3,2899.3,0.7726]
[1731056122072,1.53982821,2900.1,2899.3,0.7726]
[1731056123435,4.07591945,2900.3,2899.3,0.7726]
[1731056123582,3.0,2900.0,2899.3,0.7726]
[1731056124081,3.0,2899.7,2899.3,0.7726]
[1731056125374,3.0,2900.0,2899.3,0.7726]
[1731056125649,4.41271664,2900.4,2899.3,0.7726]
[1731056125982,3.33679719,2900.4,2899.3,0.7726]
[1731056126368,3.33679719,2900.4,2899.4,0.55]
[1731056126558,3.33679719,2900.4,2899.5,0.8181]
[1731056127045,1.70986532,2900.5,2899.5,0.8181]
[1731056127249,1.07591945,2900.5,2899.5,0.8181]
[1731056127787,4.41271664,2900.4,2899.5,0.8181]
[1731056128346,1.07591945,2900.3,2899.5,0.8181]
[1731056128646,4.07591945,2900.3,2899.5,0.8181]
[1731056129048,3.0,2900.0,2899.5,0.8181]
[1731056129262,0.63367972,2899.9,2899.5,0.8181]
[1731056130747,3.0,2900.0,2899.5,0.8181]
[1731056131145,1.07591945,2900.2,2899.5,0.8181]
[1731056131349,1.07591945,2900.3,2899.5,0.8181]
[1731056131545,7.41271664,2900.4,2899.5,0.8181]
[1731056131750,0.16093629,2900.1,2899.5,0.8181]
[1731056131946,0.69670585,2900.1,2900.0,10.0]
[1731056132162,3.87256675,2900.1,2900.0,10.0]
[1731056132363,6.87256675,2900.1,2900.0,10.0]
[1731056133760,4.43455926,2900.3,2900.0,10.8321]
[1731056134456,3.0,2900.3,2900.0,10.8321]
[1731056136196,4.43455926,2900.3,2900.0,10.8321]
[1731056138289,4.34117018,2900.3,2900.0,10.8321]
[1731056138470,1.43455926,2900.2,2900.0,10.8321]
[1731056139378,1.43455926,2900.2,2900.0,10.0]
[1731056139707,1.43455926,2900.1,2900.0,10.0]
[1731056140690,1.43455926,2900.2,2900.0,10.0]
[1731056141398,1.43455926,2900.1,2900.0,10.0]
[1731056143119,1.43455926,2900.2,2900.0,10.0]
[1731056143292,4.34117018,2900.3,2900.1,0.8312]
[1731056144613,1.43455926,2900.2,2900.1,0.8312]
[1731056146185,4.70926642,2900.3,2900.1,0.8312]
[1731056146695,1.4433057,2900.2,2900.1,0.8312]
[1731056146896,4.70926642,2900.3,2900.1,0.8312]
[1731056147117,1.8026555,2900.2,2900.1,0.8312]
[1731056147532,1.8026555,2900.2,2900.0,10.0]
[1731056147822,1.8026555,2900.1,2900.0,10.0]
[1731056148124,1.8026555,2900.2,2900.0,10.0]
[1731056148520,1.8026555,2900.1,2900.0,10.0]
[1731056148684,1.8026555,2900.2,2900.0,10.0]
[1731056149491,1.44398728,2900.1,2900.0,10.0]
[1731056150900,1.8026555,2900.2,2900.0,10.0]
[1731056151107,1.80513708,2900.2,2900.0,10.0]
[1731056151340,2.98419897,2900.1,2900.0,10.0]
[1731056151505,1.54013093,2900.1,2900.0,10.0]
[1731056152106,3.34526801,2900.1,2900.0,10.0]
[1731056152303,1.54013093,2900.1,2900.0,10.0]
[1731056152602,3.34526801,2900.1,2900.0,10.0]
[1731056153192,3.34551475,2900.1,2900.0,10.0]
[1731056153404,1.54013093,2900.1,2900.0,10.0]
[1731056154329,2.34943093,2900.1,2900.0,10.0]
[1731056154503,2.80099047,2900.1,2900.0,10.0]
[1731056156015,4.96796925,2900.1,2900.0,10.0]
[1731056156222,2.80099047,2900.1,2900.0,10.0]
[1731056156433,4.96796925,2900.1,2900.0,10.0]
[1731056156826,4.3334214,2900.1,2900.0,10.0]
[1731056157024,4.3334214,2900.1,2900.0,9.38108861]
[1731056157192,4.8934214,2900.1,2900.0,5.63343785]
[1731056157398,0.7832,2899.8,2898.8,0.8106]
[1731056157719,2.62409188,2898.9,2898.8,0.8106]
[1731056157919,1.08396095,2899.0,2898.8,0.8106]
[1731056158934,1.08396095,2899.1,2898.8,0.8106]
[1731056159740,1.44528126,2899.4,2898.8,0.8106]
[1731056160032,1.54013093,2899.3,2898.8,0.8106]
[1731056160519,2.98541219,2899.5,2898.8,0.8106]
[1731056160723,1.54013093,2899.3,2898.8,0.8106]
[1731056160900,1.08310661,2899.2,2898.8,0.8106]
[1731056163194,2.98541219,2899.5,2898.8,0.8106]
[1731056165613,1.54013093,2899.3,2898.8,0.8106]
[1731056166123,2.62310444,2899.3,2898.8,0.8106]
[1731056166344,2.62310407,2899.3,2898.8,0.8106]
[1731056166516,2.62308477,2899.3,2898.8,0.8106]
[1731056166853,1.08295384,2899.2,2898.8,0.8106]
[1731056167057,1.54013093,2899.3,2898.8,0.8106]
[1731056167267,1.08297043,2899.2,2898.8,0.8106]
[1731056168657,2.98541219,2899.3,2898.8,0.8106]
[1731056168658,2.62310136,2899.3,2898.8,0.8106]
[1731056169157,3.02945579,2899.3,2898.8,0.8106]
[1731056169458,1.0824866,2899.2,2898.8,0.8106]
[1731056170050,3.02926398,2899.3,2898.8,0.8106]
[1731056170251,1.94696919,2899.3,2898.8,0.8106]
[1731056170476,3.02932804,2899.3,2898.8,0.8106]
[1731056172251,0.74746093,2899.2,2898.8,0.8106]
[1731056172557,3.02932804,2899.3,2898.8,0.8106]
[1731056172726,1.54013093,2899.3,2898.8,0.8106]
[1731056172916,5.98541219,2899.5,2898.8,0.8106]
[1731056173340,4.54013093,2899.5,2898.8,0.8106]
[1731056173529,5.98541219,2899.5,2898.8,0.8106]
[1731056173741,0.59854122,2899.4,2898.8,0.8106]
[1731056173944,1.68049734,2899.4,2898.8,0.8106]
[1731056174455,0.59854122,2899.4,2898.8,0.8106]
[1731056175228,4.44528126,2899.6,2898.8,0.8106]
[1731056175557,5.98541219,2899.8,2898.8,0.8106]
[1731056175757,1.54013093,2899.8,2899.0,0.8229]
[1731056176320,1.44528126,2900.0,2899.0,0.8229]
[1731056176733,1.54013093,2899.7,2899.0,0.8229]
[1731056178358,4.44528126,2900.1,2899.2,0.8316]
[1731056178662,1.44948185,2900.0,2899.2,0.8316]
[1731056178868,1.54013093,2899.9,2899.2,0.8316]
[1731056185933,1.54013093,2899.7,2899.2,0.8316]
[1731056188079,1.54013093,2899.5,2898.5,0.8278]
[1731056189568,1.54013093,2899.5,2898.7,0.7859]
[1731056189777,5.39635409,2899.5,2898.7,0.7859]
[1731056190133,1.54013093,2899.2,2898.7,0.7859]
[1731056191003,2.39635409,2899.5,2898.7,0.7859]
[1731056191299,5.39635409,2899.5,2898.7,0.7859]
[1731056191760,2.39635409,2899.5,2898.7,0.7859]
[1731056195150,2.58327763,2899.9,2899.1,0.82]
[1731056195151,1.44528126,2899.9,2899.1,0.82]
[1731056195549,12.24,2900.0,2899.1,0.82]
[1731056195749,2.98541219,2900.1,2899.1,0.82]
[1731056196179,1.44528126,2900.1,2899.1,0.82]
[1731056196409,4.54013093,2900.0,2899.1,0.82]
[1731056196752,4.54013093,2900.0,2898.7,1.55013093]
[1731056196753,1.44528126,2900.1,2899.2,0.55]
[1731056196972,1.44528126,2900.1,2899.3,0.7568]
[1731056196973,1.54013093,2900.1,2899.3,0.7568]
[1731056197184,0.29854122,2900.0,2899.3,0.7568]